[Event "Swedish U16 Team Championship 2019 - Final"]
[Site "Molnlycke Kulturhus, Biblioteksgatan 2, Molnlycke, Sweden"]
[Date "2019.08.18"]
[Round "5.9"]
[White "Nord, Alexander"]
[Black "Strom-Engdahl, Alexander"]
[Result "1/2-1/2"]
[TimeControl "90 minutes + 30 seconds per move from move one."]
[WhiteElo "1881"]
[BlackElo "1858"]

1. d4 {[%clk 01:30:59]} Nf6 {[%clk 01:29:59]} {[%emt 00:01:01]} 2. Nf3 {[%clk
01:31:22]} {[%emt 00:00:06]} e6 {[%clk 01:30:15]} {[%emt 00:00:14]} 3. g3
{[%clk 01:31:42]} {[%emt 00:00:10]} b6 {[%clk 01:29:30]} {[%emt 00:01:15]} 4.
Bg2 {[%clk 01:32:04]} {[%emt 00:00:08]} Bb7 {[%clk 01:29:33]} {[%emt 00:00:23]}
5. O-O {[%clk 01:32:27]} {[%emt 00:00:11]} d6 {[%clk 01:28:27]} {[%emt
00:01:36]} 6. c4 {[%clk 01:31:52]} {[%emt 00:01:06]} Nbd7 {[%clk 01:28:03]}
{[%emt 00:01:46]} 7. Nc3 {[%clk 01:22:33]} {[%emt 00:08:56]} Be7 {[%clk
01:24:10]} {[%emt 00:04:23]} 8. Qc2 {[%clk 01:21:58]} {[%emt 00:01:05]} O-O
{[%clk 01:23:03]} {[%emt 00:01:36]} 9. e4 {[%clk 01:21:31]} {[%emt 00:00:57]}
e5 {[%clk 01:17:30]} {[%emt 00:06:03]} 10. Rd1 {[%clk 01:16:36]} {[%emt
00:05:25]} exd4 {[%clk 01:03:42]} {[%emt 00:14:19]} 11. Nxd4 {[%clk 01:16:53]}
{[%emt 00:00:12]} Rb8 {[%clk 00:53:44]} {[%emt 00:10:28]} 12. Nd5 {[%clk
01:06:49]} {[%emt 00:10:35]} Re8 {[%clk 00:43:03]} {[%emt 00:11:12]} 13. Nb4
{[%clk 01:01:44]} {[%emt 00:05:35]} Ra8 {[%clk 00:39:17]} {[%emt 00:04:15]} 14.
Nbc6 {[%clk 00:46:54]} {[%emt 00:15:19]} Qc8 {[%clk 00:38:22]} {[%emt
00:01:25]} 15. f4 {[%clk 00:44:05]} {[%emt 00:03:19]} Bf8 {[%clk 00:33:27]}
{[%emt 00:05:25]} 16. Re1 {[%clk 00:43:06]} {[%emt 00:01:28]} Nb8 {[%clk
00:32:46]} {[%emt 00:01:12]} 17. e5 {[%clk 00:29:45]} {[%emt 00:13:51]} dxe5
{[%clk 00:32:11]} {[%emt 00:01:04]} 18. fxe5 {[%clk 00:29:57]} {[%emt
00:00:18]} Bc5 {[%clk 00:32:15]} {[%emt 00:00:26]} 19. Kh1 {[%clk 00:23:17]}
{[%emt 00:07:10]} Bxd4 {[%clk 00:21:23]} {[%emt 00:11:22]} 20. Nxd4 {[%clk
00:23:36]} {[%emt 00:00:11]} Bxg2+ {[%clk 00:21:37]} {[%emt 00:00:15]} 21. Qxg2
{[%clk 00:23:36]} {[%emt 00:00:30]} Nbd7 {[%clk 00:22:00]} {[%emt 00:00:08]} 22.
Bf4 {[%clk 00:21:51]} {[%emt 00:02:15]} Nh5 {[%clk 00:21:15]} {[%emt 00:01:14]}
23. Rad1 {[%clk 00:18:57]} {[%emt 00:03:25]} Nf8 {[%clk 00:19:05]} {[%emt
00:02:39]} 24. Nc6 {[%clk 00:12:24]} {[%emt 00:07:03]} Ne6 {[%clk 00:15:10]}
{[%emt 00:04:26]} 25. Bc1 {[%clk 00:11:43]} {[%emt 00:01:11]} g6 {[%clk
00:14:05]} {[%emt 00:01:34]} 26. b3 {[%clk 00:11:29]} {[%emt 00:00:45]} Nhg7
{[%clk 00:07:48]} {[%emt 00:06:47]} 27. Rf1 {[%clk 00:09:44]} {[%emt 00:02:15]}
Nf5 {[%clk 00:06:56]} {[%emt 00:01:23]} 28. Qf3 {[%clk 00:09:36]} {[%emt
00:00:38]} h5 {[%clk 00:06:53]} {[%emt 00:00:33]} 29. h4 {[%clk 00:01:39]}
{[%emt 00:08:27]} a5 {[%clk 00:05:56]} {[%emt 00:01:27]} 30. Ba3 {[%clk
00:01:04]} {[%emt 00:01:04]} Nc5 {[%clk 00:06:17]} {[%emt 00:00:11]} 31. Bxc5
{[%clk 00:01:05]} {[%emt 00:00:29]} bxc5 {[%clk 00:06:43]} {[%emt 00:00:04]} 32.
a4 {[%clk 00:00:51]} {[%emt 00:00:43]} Qe6 {[%clk 00:07:00]} {[%emt 00:00:14]}
33. Kh2 {[%clk 00:00:48]} {[%emt 00:00:33]} Ra6 {[%clk 00:07:18]} {[%emt
00:00:12]} 34. Nd8 {[%clk 00:01:16]} {[%emt 00:00:02]} Qe7 {[%clk 00:04:47]}
{[%emt 00:03:02]} 35. Nc6 {[%clk 00:01:01]} {[%emt 00:00:44]} Qe6 {[%clk
00:05:11]} {[%emt 00:00:06]} 36. Nd8 {[%clk 00:01:29]} {[%emt 00:00:02]} Qxe5
{[%emt 00:00:16]} 1/2-1/2

[Event "Swedish U16 Team Championship 2019 - Final"]
[Site "Molnlycke Kulturhus, Biblioteksgatan 2, Molnlycke, Sweden"]
[Date "2019.08.18"]
[Round "5.10"]
[White "Lindholm, Marcus"]
[Black "Joensson, Oscar"]
[Result "0-1"]
[TimeControl "90 minutes + 30 seconds per move from move one."]
[WhiteElo "1412"]
[BlackElo "1790"]

1. e4 {[%clk 01:30:42]} {[%emt 00:00:18]} c6 {[%clk 01:30:49]} {[%emt
00:00:11]} 2. d4 {[%clk 01:30:49]} {[%emt 00:00:24]} d5 {[%clk 01:31:09]}
{[%emt 00:00:09]} 3. e5 {[%clk 01:30:41]} {[%emt 00:00:39]} Bf5 {[%clk
01:31:32]} {[%emt 00:00:06]} 4. Nf3 {[%clk 01:30:14]} {[%emt 00:00:58]} e6
{[%clk 01:31:26]} {[%emt 00:00:36]} 5. Nc3 {[%clk 01:29:28]} {[%emt 00:01:16]}
Ne7 {[%clk 01:28:30]} {[%emt 00:03:26]} 6. Bg5 {[%clk 01:20:21]} {[%emt
00:09:38]} h6 {[%clk 01:24:11]} {[%emt 00:04:48]} 7. Bh4 {[%clk 01:20:26]}
{[%emt 00:00:26]} Nd7 {[%clk 01:22:55]} {[%emt 00:01:45]} 8. h3 {[%clk
01:18:30]} {[%emt 00:02:27]} Qb6 {[%clk 01:21:48]} {[%emt 00:01:35]} 9. Rb1
{[%clk 01:14:44]} {[%emt 00:04:17]} c5 {[%clk 01:08:16]} {[%emt 00:14:01]} 10.
dxc5 {[%clk 01:11:16]} {[%emt 00:03:59]} Nxc5 {[%clk 00:57:18]} {[%emt
00:11:28]} 11. Bxe7 {[%clk 01:08:27]} {[%emt 00:03:19]} Bxe7 {[%clk 00:57:42]}
{[%emt 00:00:06]} 12. Bb5+ {[%clk 01:08:47]} {[%emt 00:00:11]} Nd7 {[%clk
00:57:32]} {[%emt 00:00:39]} 13. Bxd7+ {[%clk 01:07:57]} {[%emt 00:01:20]} Kxd7
{[%clk 00:57:56]} {[%emt 00:00:07]} 14. O-O {[%clk 01:07:22]} {[%emt 00:01:05]}
Rhd8 {[%clk 00:56:47]} {[%emt 00:01:38]} 15. a3 {[%clk 00:57:42]} {[%emt
00:10:11]} Rac8 {[%clk 00:56:13]} {[%emt 00:01:03]} 16. Qe2 {[%clk 00:47:13]}
{[%emt 00:10:59]} Ke8 {[%clk 00:52:14]} {[%emt 00:04:30]} 17. Rfc1 {[%clk
00:40:18]} {[%emt 00:07:24]} a6 {[%clk 00:40:48]} {[%emt 00:11:56]} 18. Qd2
{[%clk 00:32:53]} {[%emt 00:07:56]} Rc4 {[%clk 00:36:36]} {[%emt 00:04:42]} 19.
b3 {[%clk 00:29:39]} {[%emt 00:03:45]} Rc7 {[%clk 00:36:39]} {[%emt 00:00:24]}
20. Nd4 {[%clk 00:27:16]} {[%emt 00:02:54]} Bg6 {[%clk 00:29:56]} {[%emt
00:07:13]} 21. Na4 {[%clk 00:22:41]} {[%emt 00:05:05]} Qa7 {[%clk 00:26:53]}
{[%emt 00:03:32]} 22. Ra1 {[%clk 00:22:25]} {[%emt 00:00:46]} b5 {[%clk
00:18:57]} {[%emt 00:08:26]} 23. Nb2 {[%clk 00:21:27]} {[%emt 00:01:28]} Bc5
{[%clk 00:18:16]} {[%emt 00:01:10]} 24. c3 {[%clk 00:20:14]} {[%emt 00:01:44]}
Rdc8 {[%clk 00:16:45]} {[%emt 00:02:00]} 25. b4 {[%clk 00:16:19]} {[%emt
00:04:26]} Bxd4 {[%clk 00:10:23]} {[%emt 00:06:52]} 26. cxd4 {[%clk 00:16:26]}
{[%emt 00:00:23]} Rc2 {[%clk 00:09:49]} {[%emt 00:01:03]} 27. Qd1 {[%clk
00:12:45]} {[%emt 00:04:12]} Qc7 {[%clk 00:09:13]} {[%emt 00:01:05]} 28. Nd3
{[%clk 00:12:12]} {[%emt 00:01:04]} Bxd3 {[%clk 00:09:32]} {[%emt 00:00:11]} 29.
Qxd3 {[%clk 00:12:35]} {[%emt 00:00:07]} Rxc1+ {[%clk 00:09:58]} {[%emt
00:00:04]} 30. Rxc1 {[%clk 00:12:56]} {[%emt 00:00:09]} Qxc1+ {[%clk 00:10:22]}
{[%emt 00:00:05]} 31. Kh2 {[%clk 00:13:11]} {[%emt 00:00:16]} Qf4+ {[%clk
00:10:24]} {[%emt 00:00:27]} 0-1

[Event "Swedish U16 Team Championship 2019 - Final"]
[Site "Molnlycke Kulturhus, Biblioteksgatan 2, Molnlycke, Sweden"]
[Date "2019.08.18"]
[Round "5.11"]
[White "Morell, Ludvig"]
[Black "Ghaderi, Roshan"]
[Result "1-0"]
[TimeControl "90 minutes + 30 seconds per move from move one."]
[WhiteElo "1771"]
[BlackElo "1379"]

1. e4 {[%clk 01:30:49]} {[%emt 00:00:05]} c6 {[%clk 01:30:51]} {[%emt
00:00:15]} 2. Nc3 {[%clk 01:31:11]} {[%emt 00:00:08]} d5 {[%clk 01:31:14]}
{[%emt 00:00:08]} 3. Nf3 {[%clk 01:31:38]} {[%emt 00:00:03]} dxe4 {[%clk
01:31:19]} {[%emt 00:00:24]} 4. Nxe4 {[%clk 01:32:01]} {[%emt 00:00:07]} Bf5
{[%clk 01:31:43]} {[%emt 00:00:07]} 5. Ng3 {[%clk 01:32:27]} {[%emt 00:00:04]}
Bg6 {[%clk 01:32:04]} {[%emt 00:00:09]} 6. h4 {[%clk 01:32:05]} {[%emt
00:00:52]} h6 {[%clk 01:32:06]} {[%emt 00:00:27]} 7. Ne5 {[%clk 01:31:30]}
{[%emt 00:01:07]} Bh7 {[%clk 01:32:17]} {[%emt 00:00:19]} 8. Qh5 {[%clk
01:31:31]} {[%emt 00:00:28]} g6 {[%clk 01:31:51]} {[%emt 00:01:18]} 9. Qf3
{[%clk 01:31:51]} Nf6 {[%clk 01:31:02]} {[%emt 00:01:58]} 10. Qb3 {[%clk
01:31:27]} {[%emt 00:00:04]} e6 {[%clk 01:12:40]} {[%emt 00:18:52]} 11. Qxb7
{[%clk 01:30:35]} {[%emt 00:01:22]} Nbd7 {[%clk 01:13:04]} {[%emt 00:00:05]} 12.
Nxc6 {[%clk 01:23:57]} {[%emt 00:07:09]} Qc8 {[%clk 01:13:26]} {[%emt
00:00:08]} 13. Qxc8+ {[%clk 01:24:17]} {[%emt 00:00:10]} Rxc8 {[%clk 01:13:46]}
{[%emt 00:00:10]} 14. Nxa7 {[%clk 01:24:38]} {[%emt 00:00:09]} Rxc2 {[%clk
01:14:03]} {[%emt 00:00:13]} 15. Bd3 {[%clk 01:23:13]} {[%emt 00:01:54]} Rc7
{[%clk 01:12:59]} {[%emt 00:01:34]} 16. Nb5 {[%clk 01:22:00]} {[%emt 00:01:43]}
Rb7 {[%clk 01:11:30]} {[%emt 00:01:59]} 17. Nc3 {[%clk 01:21:33]} {[%emt
00:00:56]} Bg7 {[%clk 01:11:48]} {[%emt 00:00:12]} 18. Nge4 {[%clk 01:14:25]}
{[%emt 00:07:38]} O-O {[%clk 01:12:01]} {[%emt 00:00:16]} 19. Rb1 {[%clk
01:11:53]} {[%emt 00:03:03]} Nxe4 {[%clk 01:07:41]} {[%emt 00:04:52]} 20. Nxe4
{[%clk 01:08:18]} {[%emt 00:04:03]} Rfb8 {[%clk 01:02:00]} {[%emt 00:06:12]} 21.
b3 {[%clk 01:03:22]} {[%emt 00:05:26]} Ne5 {[%clk 01:00:22]} {[%emt 00:02:09]}
22. Ke2 {[%clk 00:38:11]} {[%emt 00:25:40]} Nxd3 {[%clk 00:17:55]} {[%emt
00:42:58]} 23. Kxd3 {[%clk 00:36:17]} {[%emt 00:02:24]} g5 {[%clk 00:17:58]}
{[%emt 00:00:27]} 24. hxg5 {[%clk 00:23:55]} {[%emt 00:12:52]} hxg5 {[%clk
00:18:10]} {[%emt 00:00:18]} 25. f3 {[%clk 00:19:42]} {[%emt 00:04:43]} Rd8+
{[%clk 00:18:24]} {[%emt 00:00:16]} 26. Ke2 {[%clk 00:19:50]} {[%emt 00:00:21]}
g4 {[%clk 00:17:59]} {[%emt 00:00:56]} 27. Bb2 {[%clk 00:15:00]} {[%emt
00:05:20]} gxf3+ {[%clk 00:17:27]} {[%emt 00:01:01]} 28. gxf3 {[%clk 00:14:52]}
{[%emt 00:00:38]} Rbd7 {[%clk 00:17:08]} {[%emt 00:00:49]} 29. Bxg7 {[%clk
00:08:49]} {[%emt 00:06:34]} Bxe4 {[%clk 00:15:07]} {[%emt 00:02:31]} 30. Bf6
{[%clk 00:07:16]} {[%emt 00:02:02]} Bxf3+ {[%clk 00:11:58]} {[%emt 00:03:40]}
31. Kxf3 {[%clk 00:07:40]} {[%emt 00:00:07]} Rd3+ {[%clk 00:12:23]} {[%emt
00:00:04]} 32. Kg2 {[%clk 00:06:46]} {[%emt 00:01:23]} Rxd2+ {[%clk 00:12:36]}
{[%emt 00:00:17]} 33. Kg1 {[%clk 00:07:06]} {[%emt 00:00:10]} Rd1+ {[%clk
00:10:57]} {[%emt 00:02:10]} 34. Rxd1 {[%clk 00:07:32]} {[%emt 00:00:04]} Rxd1+
{[%clk 00:11:19]} {[%emt 00:00:07]} 35. Kg2 {[%clk 00:07:57]} {[%emt 00:00:05]}
1-0

[Event "Swedish U16 Team Championship 2019 - Final"]
[Site "Molnlycke Kulturhus, Biblioteksgatan 2, Molnlycke, Sweden"]
[Date "2019.08.18"]
[Round "5.12"]
[White "Hjernestam, John"]
[Black "Johansson, William 2007"]
[Result "0-1"]
[TimeControl "90 minutes + 30 seconds per move from move one."]
[WhiteElo "1376"]
[BlackElo "1682"]

1. d4 {[%clk 01:30:57]} {[%emt 00:00:03]} Nf6 {[%clk 01:30:34]} {[%emt
00:00:27]} 2. Bf4 {[%clk 01:31:19]} {[%emt 00:00:08]} d5 {[%clk 01:30:42]}
{[%emt 00:00:21]} 3. e3 {[%clk 01:31:42]} {[%emt 00:00:07]} c5 {[%clk
01:30:39]} {[%emt 00:00:33]} 4. c3 {[%clk 01:32:06]} {[%emt 00:00:07]} Nc6
{[%clk 01:31:00]} {[%emt 00:00:09]} 5. Bd3 {[%clk 01:31:24]} {[%emt 00:01:11]}
Qb6 {[%clk 01:28:53]} {[%emt 00:02:52]} 6. Qb3 {[%clk 01:30:53]} {[%emt
00:01:58]} c4 {[%clk 01:29:06]} 7. Qxb6 {[%clk 01:31:01]} axb6 {[%clk
01:29:33]} 8. Bc2 {[%clk 01:30:25]} {[%emt 00:00:36]} b5 {[%clk 01:29:21]}
{[%emt 00:00:43]} 9. Nd2 {[%clk 01:29:52]} {[%emt 00:01:02]} b4 {[%clk
01:24:28]} {[%emt 00:05:23]} 10. Bd1 {[%clk 01:25:59]} {[%emt 00:04:23]} Bf5
{[%clk 01:22:39]} {[%emt 00:02:19]} 11. Be2 {[%clk 01:25:04]} {[%emt 00:01:24]}
e6 {[%clk 01:19:39]} {[%emt 00:03:31]} 12. f3 {[%clk 01:15:03]} {[%emt
00:10:31]} bxc3 {[%clk 01:19:25]} {[%emt 00:00:44]} 13. bxc3 {[%clk 01:14:23]}
{[%emt 00:01:10]} Ba3 {[%clk 01:18:52]} {[%emt 00:01:02]} 14. e4 {[%clk
01:13:13]} {[%emt 00:01:41]} dxe4 {[%clk 01:17:36]} {[%emt 00:01:47]} 15. Nxc4
{[%clk 01:12:57]} {[%emt 00:00:45]} Nd5 {[%clk 01:13:34]} {[%emt 00:04:32]} 16.
Bd2 {[%clk 01:11:14]} {[%emt 00:02:11]} e3 {[%clk 01:10:27]} {[%emt 00:03:38]}
17. Nxe3 {[%clk 01:06:16]} {[%emt 00:05:28]} Nxe3 {[%clk 01:10:21]} {[%emt
00:00:36]} 18. Bxe3 {[%clk 01:06:07]} {[%emt 00:00:38]} Bb2 {[%clk 01:10:42]}
{[%emt 00:00:11]} 19. Rd1 {[%clk 01:02:50]} {[%emt 00:03:44]} Bc2 {[%clk
01:09:38]} {[%emt 00:01:37]} 20. d5 {[%clk 00:58:48]} {[%emt 00:04:32]} Bxc3+
{[%clk 00:55:39]} {[%emt 00:14:29]} 21. Kf1 {[%clk 00:51:51]} {[%emt 00:07:25]}
Bxd1 {[%clk 00:55:29]} {[%emt 00:00:41]} 22. dxc6 {[%clk 00:48:44]} {[%emt
00:03:37]} Bxe2+ {[%clk 00:55:44]} {[%emt 00:00:15]} 23. Nxe2 {[%clk 00:49:03]}
{[%emt 00:00:12]} Bf6 {[%clk 00:51:30]} {[%emt 00:04:44]} 24. cxb7 {[%clk
00:34:02]} {[%emt 00:15:32]} Rb8 {[%clk 00:51:20]} {[%emt 00:00:40]} 25. Kf2
{[%clk 00:33:07]} {[%emt 00:01:23]} Rxb7 {[%clk 00:51:17]} {[%emt 00:00:35]} 26.
Rc1 {[%clk 00:32:26]} {[%emt 00:01:09]} O-O {[%clk 00:43:32]} {[%emt 00:08:16]}
27. Rc6 {[%clk 00:28:47]} {[%emt 00:04:06]} Ra8 {[%clk 00:40:32]} {[%emt
00:03:33]} 28. a3 {[%clk 00:26:18]} {[%emt 00:02:59]} Kf8 {[%clk 00:37:53]}
{[%emt 00:03:10]} 29. f4 {[%clk 00:20:27]} {[%emt 00:06:21]} Ke8 {[%clk
00:34:05]} {[%emt 00:04:18]} 30. Bc5 {[%clk 00:19:38]} {[%emt 00:01:17]} Be7
{[%clk 00:32:21]} {[%emt 00:02:16]} 31. Bd4 {[%clk 00:18:01]} {[%emt 00:02:05]}
g6 {[%clk 00:31:27]} {[%emt 00:01:26]} 32. Bc5 {[%clk 00:17:08]} {[%emt
00:01:23]} Bxc5+ {[%clk 00:28:59]} {[%emt 00:03:00]} 33. Rxc5 {[%clk 00:17:23]}
{[%emt 00:00:14]} Rxa3 {[%clk 00:27:55]} {[%emt 00:01:33]} 34. Rc3 {[%clk
00:15:47]} {[%emt 00:02:08]} Ra2 {[%clk 00:21:55]} {[%emt 00:06:29]} 35. Re3
{[%clk 00:15:10]} {[%emt 00:01:06]} Rbb2 {[%clk 00:21:48]} {[%emt 00:00:37]} 36.
g4 {[%clk 00:13:50]} {[%emt 00:01:51]} Kd7 {[%clk 00:19:23]} {[%emt 00:02:55]}
37. g5 {[%clk 00:13:24]} {[%emt 00:00:56]} Kd6 {[%clk 00:18:44]} {[%emt
00:01:08]} 38. Kf3 {[%clk 00:11:34]} {[%emt 00:02:20]} Ra1 {[%clk 00:14:59]}
{[%emt 00:04:16]} 39. Re5 {[%clk 00:09:34]} {[%emt 00:02:27]} Rf1+ {[%clk
00:13:26]} {[%emt 00:02:06]} 40. Kg3 {[%clk 00:08:50]} {[%emt 00:01:14]} Re1
{[%clk 00:10:56]} {[%emt 00:03:00]} 41. Kf2 {[%clk 00:08:44]} {[%emt 00:00:36]}
Ra1 {[%clk 00:09:18]} {[%emt 00:02:08]} 42. Kf3 {[%clk 00:08:21]} {[%emt
00:00:53]} Ra3+ {[%clk 00:09:07]} {[%emt 00:00:41]} 43. Kf2 {[%clk 00:08:32]}
{[%emt 00:00:19]} Rbb3 {[%clk 00:08:08]} {[%emt 00:01:29]} 44. Nd4 {[%clk
00:07:44]} {[%emt 00:01:17]} Rb2+ {[%clk 00:07:35]} {[%emt 00:01:04]} 45. Ne2
{[%clk 00:08:04]} {[%emt 00:00:11]} Ra4 {[%clk 00:07:19]} {[%emt 00:00:45]} 46.
Kf3 {[%clk 00:07:57]} {[%emt 00:00:36]} Rb3+ {[%clk 00:06:41]} {[%emt
00:01:08]} 47. Re3 {[%clk 00:05:41]} {[%emt 00:02:46]} Rxe3+ {[%clk 00:06:11]}
{[%emt 00:01:00]} 48. Kxe3 {[%clk 00:06:03]} {[%emt 00:00:08]} Ra3+ {[%clk
00:06:23]} {[%emt 00:00:18]} 49. Kf2 {[%clk 00:06:17]} {[%emt 00:00:15]} Kd5
{[%clk 00:06:25]} {[%emt 00:00:29]} 50. Ng3 {[%clk 00:05:46]} {[%emt 00:01:01]}
e5 {[%clk 00:05:16]} {[%emt 00:01:39]} 51. fxe5 {[%clk 00:05:19]} {[%emt
00:00:56]} Kxe5 {[%clk 00:05:28]} {[%emt 00:00:18]} 52. h4 {[%clk 00:05:30]}
{[%emt 00:00:20]} Kf4 {[%emt 00:01:18]} 0-1